fUSD/lending_fUSD_20260506
["ID","MTS","AMOUNT","RATE_DAILY","PERIOD"]
[421709200,1778051256000,-308.2688094,0.00012646,2]
[421709199,1778051256000,-308.2688094,0.00012646,2]
[421709202,1778051257000,-308.2688094,0.00012646,2]
[421709203,1778051258000,-308.2688094,0.00012646,2]
[421709204,1778051259000,-308.2688094,0.00012646,2]
[421709205,1778051288000,-9851.6518974,0.00012646,2]
[421709215,1778051379000,-282.26075447,0.00012695,2]
[421709214,1778051379000,-151.0,0.00012695,2]
[421709206,1778051379000,-300.0,0.00012645,2]
[421709207,1778051379000,-2200.0,0.00012646,2]
[421709208,1778051379000,-300.0,0.00012646,2]
[421709209,1778051379000,-153.12137068,0.00012682,2]
[421709213,1778051379000,-500.0,0.00012695,2]
[421709212,1778051379000,-413.61787485,0.00012695,2]
[421709211,1778051379000,-500.0,0.00012695,2]
[421709210,1778051379000,-200.0,0.00012695,2]
[421709217,1778051380000,-2351.18,0.00012587,2]
[421709218,1778051380000,-148.82,0.00012695,2]
[421709216,1778051380000,-2500.0,0.00012587,2]
[421709221,1778051381000,-1274.61,0.00012695,2]
[421709219,1778051381000,-225.39,0.00012419,2]
[421709222,1778051381000,-150.0,0.00012694,2]
[421709223,1778051381000,-2350.0,0.00012695,2]
[421709220,1778051381000,-1000.0,0.00012472,2]
[421709227,1778051382000,-2500.0,0.00012646,2]
[421709226,1778051382000,-1921.1563974,0.00012695,2]
[421709225,1778051382000,-328.8436026,0.00012554,2]
[421709224,1778051382000,-250.0,0.00012446,2]
[421709228,1778051408000,-10000.01,0.00012646,2]
[421709265,1778051432000,-151.0,0.00012695,2]
[421709249,1778051432000,-151.0,0.00012695,2]
[421709250,1778051432000,-500.0,0.00012695,2]
[421709252,1778051432000,-500.0,0.00012695,2]
[421709275,1778051432000,-503.63032859,0.00012695,2]
[421709253,1778051432000,-151.0,0.00012695,2]
[421709255,1778051432000,-185.21192116,0.00012695,2]
[421709267,1778051432000,-151.0,0.00012695,2]
[421709247,1778051432000,-151.0,0.00012695,2]
[421709254,1778051432000,-151.0,0.00012695,2]
[421709248,1778051432000,-500.0,0.00012695,2]
[421709241,1778051432000,-5000.0,0.00012646,2]
[421709240,1778051432000,-846.48838547,0.00012646,2]
[421709245,1778051432000,-8934.8193779,0.00012695,2]
[421709244,1778051432000,-16890.8805344,0.00012695,2]
[421709242,1778051432000,-17462.3527,0.00012646,2]
[421709243,1778051432000,-4407.488563,0.00012677,2]
[421709251,1778051432000,-151.0,0.00012695,2]
[421709259,1778051432000,-151.0,0.00012695,2]
[421709239,1778051432000,-32476.30259439,0.00012646,2]
[421709238,1778051432000,-1200.0,0.00012645,2]
[421709236,1778051432000,-2737.848383,0.00012328,2]
[421709237,1778051432000,-500.0,0.00012391,2]
[421709246,1778051432000,-68.91924553,0.00012695,2]
[421709260,1778051432000,-151.0,0.00012695,2]
[421709280,1778051432000,-151.0,0.00012695,2]
[421709271,1778051432000,-151.0,0.00012695,2]
[421709307,1778051432000,-500.0,0.00012745,2]
[421709306,1778051432000,-500.0,0.00012745,2]
[421709305,1778051432000,-500.0,0.00012745,2]
[421709311,1778051432000,-500.0,0.00012745,2]
[421709310,1778051432000,-500.0,0.00012745,2]
[421709309,1778051432000,-500.0,0.00012745,2]
[421709302,1778051432000,-500.0,0.00012745,2]
[421709299,1778051432000,-500.0,0.00012745,2]
[421709269,1778051432000,-500.0,0.00012695,2]
[421709297,1778051432000,-500.0,0.00012745,2]
[421709295,1778051432000,-500.0,0.00012745,2]
[421709308,1778051432000,-500.0,0.00012745,2]
[421709294,1778051432000,-500.0,0.00012745,2]
[421709262,1778051432000,-500.0,0.00012695,2]
[421709296,1778051432000,-255.02477083,0.00012745,2]
[421709273,1778051432000,-151.0,0.00012695,2]
[421709277,1778051432000,-151.0,0.00012695,2]
[421709282,1778051432000,-151.0,0.00012695,2]
[421709257,1778051432000,-500.0,0.00012695,2]
[421709288,1778051432000,-2080.17592889,0.00012695,2]
[421709292,1778051432000,-492.9626623,0.00012736,2]
[421709286,1778051432000,-151.0,0.00012695,2]
[421709290,1778051432000,-225.39,0.0001273,2]
[421709284,1778051432000,-151.0,0.00012695,2]
[421709312,1778051433000,-500.0,0.00012745,2]
[421709314,1778051433000,-500.0,0.00012745,2]
[421709315,1778051433000,-500.0,0.00012745,2]
[421709316,1778051433000,-500.0,0.00012745,2]
[421709324,1778051433000,-500.0,0.00012745,2]
[421709318,1778051433000,-500.0,0.00012745,2]
[421709317,1778051433000,-500.0,0.00012745,2]
[421709313,1778051433000,-200.0,0.00012745,2]
[421709321,1778051433000,-500.0,0.00012745,2]
[421709320,1778051433000,-500.0,0.00012745,2]
[421709323,1778051433000,-500.0,0.00012745,2]
[421709322,1778051433000,-500.0,0.00012745,2]
[421709325,1778051433000,-150.0,0.00012746,2]
[421709326,1778051433000,-921.23621971,0.00012746,2]
[421709327,1778051433000,-200.0,0.00012746,2]
[421709328,1778051433000,-11236.52905692,0.00012746,2]
[421709319,1778051433000,-500.0,0.00012745,2]
[421709329,1778051435000,213.81,0.00029452,120]
[421709341,1778051438000,-380.52932165,0.00012746,2]
[421709339,1778051438000,-189.47508428,0.00012746,2]
[421709340,1778051438000,-25586.29381645,0.00012746,2]
[421709338,1778051438000,-500.0,0.00012745,2]
[421709416,1778051440000,-227.95016857,0.00012746,2]
[421709417,1778051440000,-31616.96839627,0.00012746,2]
[421709418,1778051440000,-36584.88384033,0.00012746,2]
[421709415,1778051440000,-152.11507395,0.00012746,2]
[421709455,1778051441000,-500.0,0.00013698,2]
[421709444,1778051441000,-2157.14243826,0.00013243,2]
[421709446,1778051441000,-200.0,0.00013264,2]
[421709447,1778051441000,-500.0,0.00013424,2]
[421709448,1778051441000,-500.0,0.00013424,2]
[421709451,1778051441000,-786.24506188,0.00013661,2]
[421709453,1778051441000,-544.06732421,0.00013698,2]
[421709456,1778051441000,-500.0,0.00013698,2]
[421709458,1778051441000,-500.0,0.00013698,2]
[421709454,1778051441000,-500.0,0.00013698,2]
[421709457,1778051441000,-500.0,0.00013698,2]
[421709468,1778051441000,-500.0,0.00013698,2]
[421709459,1778051441000,-457.26723297,0.00013698,2]
[421709462,1778051441000,-500.0,0.00013698,2]
[421709460,1778051441000,-500.0,0.00013698,2]
[421709461,1778051441000,-500.0,0.00013698,2]
[421709465,1778051441000,-500.0,0.00013698,2]
[421709463,1778051441000,-500.0,0.00013698,2]
[421709464,1778051441000,-500.0,0.00013698,2]
[421709441,1778051441000,-200.0,0.00013132,2]
[421709474,1778051441000,-500.0,0.00013698,2]
[421709473,1778051441000,-500.0,0.00013698,2]
[421709452,1778051441000,-250.0,0.00013661,2]
[421709445,1778051441000,-737.41,0.0001326,2]
[421709435,1778051441000,-1753.59,0.00012987,2]
[421709438,1778051441000,-225.39,0.0001304,2]
[421709419,1778051441000,-2463415.11615967,0.00012746,2]
[421709421,1778051441000,-3000.0,0.00012746,2]
[421709423,1778051441000,-157.0,0.00012746,2]
[421709420,1778051441000,-2000.0,0.00012746,2]
[421709422,1778051441000,-3000.0,0.00012746,2]
[421709425,1778051441000,-9999.99,0.000128,2]
[421709424,1778051441000,-9999.99,0.000128,2]
[421709437,1778051441000,-500.0,0.00013019,2]
[421709427,1778051441000,-200.0,0.00012873,2]
[421709428,1778051441000,-2461.43,0.0001288,2]
[421709429,1778051441000,-9999.99,0.000129,2]
[421709432,1778051441000,-1000.0,0.00012982,2]
[421709426,1778051441000,-999.99,0.000128,2]
[421709430,1778051441000,-23375.01,0.000129,2]
[421709434,1778051441000,-317.63,0.00012987,2]
[421709436,1778051441000,-200.0,0.00013002,2]
[421709467,1778051441000,-500.0,0.00013698,2]
[421709431,1778051441000,-299.99,0.000129,2]
[421709433,1778051441000,-215.64,0.00012987,2]
[421709439,1778051441000,-426.6,0.00013084,2]
[421709449,1778051441000,-500.0,0.00013424,2]
[421709450,1778051441000,-150.0,0.00013657,2]
[421709440,1778051441000,-309.48193511,0.00013132,2]
[421709443,1778051441000,-200.0,0.00013243,2]
[421709469,1778051441000,-500.0,0.00013698,2]
[421709442,1778051441000,-158.53,0.00013208,2]
[421709471,1778051441000,-500.0,0.00013698,2]
[421709500,1778051441000,-500.0,0.00013698,2]
[421709503,1778051441000,-529.31246977,0.00013698,2]
[421709501,1778051441000,-500.0,0.00013698,2]
[421709511,1778051441000,-500.0,0.00013698,2]
[421709502,1778051441000,-500.0,0.00013698,2]
[421709509,1778051441000,-500.0,0.00013698,2]
[421709510,1778051441000,-500.0,0.00013698,2]
[421709512,1778051441000,-500.0,0.00013698,2]
[421709504,1778051441000,-500.0,0.00013698,2]
[421709508,1778051441000,-500.0,0.00013698,2]
[421709506,1778051441000,-500.0,0.00013698,2]
[421709498,1778051441000,-500.0,0.00013698,2]
[421709505,1778051441000,-500.0,0.00013698,2]
[421709513,1778051441000,-500.0,0.00013698,2]
[421709515,1778051441000,-500.0,0.00013698,2]
[421709519,1778051441000,-500.0,0.00013698,2]
[421709516,1778051441000,-500.0,0.00013698,2]
[421709514,1778051441000,-500.0,0.00013698,2]
[421709517,1778051441000,-500.0,0.00013698,2]
[421709520,1778051441000,-453.32255009,0.00013698,2]
[421709518,1778051441000,-500.0,0.00013698,2]
[421709521,1778051441000,-500.0,0.00013698,2]
[421709523,1778051441000,-500.0,0.00013698,2]
[421709472,1778051441000,-500.0,0.00013698,2]
[421709522,1778051441000,-500.0,0.00013698,2]
[421709494,1778051441000,-500.0,0.00013698,2]
[421709507,1778051441000,-513.79744774,0.00013698,2]
[421709495,1778051441000,-500.0,0.00013698,2]
[421709466,1778051441000,-500.0,0.00013698,2]
[421709496,1778051441000,-500.0,0.00013698,2]
[421709470,1778051441000,-500.0,0.00013698,2]
[421709476,1778051441000,-500.0,0.00013698,2]
[421709481,1778051441000,-500.0,0.00013698,2]
[421709482,1778051441000,-500.0,0.00013698,2]
[421709484,1778051441000,-500.0,0.00013698,2]
[421709479,1778051441000,-500.0,0.00013698,2]
[421709478,1778051441000,-500.0,0.00013698,2]
[421709483,1778051441000,-500.0,0.00013698,2]
[421709477,1778051441000,-500.0,0.00013698,2]
[421709486,1778051441000,-500.0,0.00013698,2]
[421709475,1778051441000,-500.0,0.00013698,2]
[421709480,1778051441000,-500.0,0.00013698,2]
[421709485,1778051441000,-500.0,0.00013698,2]
[421709492,1778051441000,-500.0,0.00013698,2]
[421709488,1778051441000,-500.0,0.00013698,2]
[421709493,1778051441000,-500.0,0.00013698,2]
[421709490,1778051441000,-500.0,0.00013698,2]
[421709497,1778051441000,-500.0,0.00013698,2]
[421709491,1778051441000,-500.0,0.00013698,2]
[421709499,1778051441000,-500.0,0.00013698,2]
[421709487,1778051441000,-500.0,0.00013698,2]
[421709489,1778051441000,-500.0,0.00013698,2]
[421709555,1778051442000,-250.0,0.00014,2]
[421709576,1778051442000,-500.0,0.00014073,2]
[421709564,1778051442000,-500.0,0.00014043,2]
[421709574,1778051442000,-500.0,0.00014073,2]
[421709573,1778051442000,-500.0,0.00014073,2]
[421709575,1778051442000,-500.0,0.00014073,2]
[421709562,1778051442000,-500.0,0.00014043,2]
[421709558,1778051442000,-500.0,0.00014043,2]
[421709556,1778051442000,-492.9626623,0.00014034,2]
[421709563,1778051442000,-500.0,0.00014043,2]
[421709561,1778051442000,-500.0,0.00014043,2]
[421709577,1778051442000,-166.66,0.0001411,2]
[421709557,1778051442000,-500.0,0.00014043,2]
[421709565,1778051442000,-500.0,0.00014043,2]
[421709580,1778051442000,-158.53,0.00014254,2]
[421709570,1778051442000,-572.63857253,0.00014073,2]
[421709571,1778051442000,-500.0,0.00014073,2]
[421709568,1778051442000,-500.0,0.00014073,2]
[421709572,1778051442000,-500.0,0.00014073,2]
[421709569,1778051442000,-500.0,0.00014073,2]
[421709566,1778051442000,-1129985.8720482,0.00014044,2]
[421709579,1778051442000,-166.66,0.00014247,2]
[421709578,1778051442000,-162.93,0.0001423,2]
[421709589,1778051442000,-1007.37555556,0.00014621,2]
[421709590,1778051442000,-782.82467916,0.00014621,2]
[421709582,1778051442000,-2319.72410669,0.00014339,2]
[421709585,1778051442000,-166.66,0.00014384,2]
[421709581,1778051442000,-200.0,0.00014339,2]
[421709567,1778051442000,-500.0,0.00014073,2]
[421709552,1778051442000,-166.66,0.00013973,2]
[421709533,1778051442000,-200.0,0.00013791,2]
[421709553,1778051442000,-3902.16670747,0.00013973,2]
[421709586,1778051442000,-12626.07118196,0.00014564,2]
[421709524,1778051442000,-500.0,0.00013698,2]
[421709537,1778051442000,-10899.3812429,0.00013844,2]
[421709526,1778051442000,-500.0,0.00013698,2]
[421709525,1778051442000,-500.0,0.00013698,2]
[421709536,1778051442000,-166.66,0.00013836,2]
[421709530,1778051442000,-2500.0,0.00013699,2]
[421709527,1778051442000,-500.0,0.00013698,2]
[421709532,1778051442000,-158.53,0.00013731,2]
[421709534,1778051442000,-2236.95670848,0.00013791,2]
[421709531,1778051442000,-156.30737109,0.00013723,2]
[421709528,1778051442000,-557.17074173,0.00013698,2]
[421709535,1778051442000,-255.0,0.00013799,2]
[421709529,1778051442000,-166.66,0.00013699,2]
[421709559,1778051442000,-500.0,0.00014043,2]
[421709539,1778051442000,-2500.0,0.0001391,2]
[421709549,1778051442000,-300.0,0.00013911,2]
[421709538,1778051442000,-115254.0558832,0.00013844,2]
[421709551,1778051442000,-2000.0,0.00013922,2]
[421709545,1778051442000,-1680.0,0.0001391,2]
[421709540,1778051442000,-2500.0,0.0001391,2]
[421709547,1778051442000,-300.0,0.00013911,2]
[421709543,1778051442000,-2500.0,0.0001391,2]
[421709541,1778051442000,-2500.0,0.0001391,2]
[421709542,1778051442000,-2500.0,0.0001391,2]
[421709544,1778051442000,-500.0,0.0001391,2]
[421709548,1778051442000,-300.0,0.00013911,2]
[421709546,1778051442000,-300.0,0.00013911,2]
[421709560,1778051442000,-500.0,0.00014043,2]
[421709554,1778051442000,-154.99317027,0.00013973,2]
[421709550,1778051442000,-300.0,0.00013911,2]
[421709587,1778051442000,-1000.0,0.00014621,2]
[421709618,1778051442000,-473.52157341,0.000162,2]
[421709584,1778051442000,-44976.31259438,0.00014364,2]
[421709619,1778051442000,-736.0,0.000163,2]
[421709622,1778051442000,-2732.3,0.00016438,2]
[421709623,1778051442000,-970.29,0.00016438,2]
[421709627,1778051442000,-500.0,0.00016438,2]
[421709628,1778051442000,-163.16558903,0.00016438,2]
[421709630,1778051442000,-229.62,0.00016438,2]
[421709633,1778051442000,-162.59148893,0.00016438,2]
[421709632,1778051442000,-258.07795954,0.00016438,2]
[421709634,1778051442000,-500.0,0.00016438,2]
[421709635,1778051442000,-500.0,0.00016438,2]
[421709642,1778051442000,-500.0,0.00016438,2]
[421709641,1778051442000,-500.0,0.00016438,2]
[421709638,1778051442000,-501.05799506,0.00016438,2]
[421709639,1778051442000,-500.0,0.00016438,2]
[421709631,1778051442000,-500.0,0.00016438,2]
[421709637,1778051442000,-500.0,0.00016438,2]
[421709643,1778051442000,-500.0,0.00016438,2]
[421709640,1778051442000,-500.0,0.00016438,2]
[421709636,1778051442000,-500.0,0.00016438,2]
[421709645,1778051442000,-500.43861517,0.00016438,2]
[421709649,1778051442000,-200.0,0.00016531,2]
[421709647,1778051442000,-500.0,0.00016438,2]
[421709646,1778051442000,-521.03068147,0.00016438,2]
[421709648,1778051442000,-12626.07118196,0.00016482,2]
[421709644,1778051442000,-500.0,0.00016438,2]
[421709652,1778051442000,-199.36,0.00016712,2]
[421709583,1778051442000,-500.0,0.00014343,2]
[421709653,1778051442000,-3292.0,0.0001683,2]
[421709651,1778051442000,-186.478838,0.00016685,2]
[421709617,1778051442000,-200.0,0.00016158,2]
[421709621,1778051442000,-5830.25511679,0.0001639,2]
[421709650,1778051442000,-2682.57183977,0.00016531,2]
[421709625,1778051442000,-450.0,0.00016438,2]
[421709629,1778051442000,-500.0,0.00016438,2]
[421709588,1778051442000,-1000.0,0.00014621,2]
[421709591,1778051442000,-426.6,0.00014719,2]
[421709594,1778051442000,-2405.55389864,0.00014887,2]
[421709603,1778051442000,-200.0,0.00015435,2]
[421709600,1778051442000,-1500.0,0.00015168,2]
[421709595,1778051442000,-433.0,0.00015005,2]
[421709601,1778051442000,-296.59,0.0001528,2]
[421709596,1778051442000,-450.0,0.00015068,2]
[421709598,1778051442000,-157.0,0.00015149,3]
[421709602,1778051442000,-2351.0,0.000153,2]
[421709597,1778051442000,-421.82,0.000151,2]
[421709599,1778051442000,-1500.0,0.00015168,2]
[421709593,1778051442000,-200.0,0.00014887,2]
[421709605,1778051442000,-2000.0,0.00015469,2]
[421709592,1778051442000,-158.53,0.00014778,2]
[421709614,1778051442000,-44976.31259438,0.00016083,2]
[421709615,1778051442000,-473.52157341,0.000161,2]
[421709620,1778051442000,-426.6,0.00016355,2]
[421709613,1778051442000,-473.52157341,0.00016,2]
[421709612,1778051442000,-300.0,0.00016,2]
[421709610,1778051442000,-200.0,0.00015983,2]
[421709611,1778051442000,-2586.85809042,0.00015983,2]
[421709626,1778051442000,-500.14771271,0.00016438,2]
[421709607,1778051442000,-965.30571079,0.00015716,2]
[421709604,1778051442000,-2494.55939289,0.00015435,2]
[421709609,1778051442000,-377.29903517,0.0001596,2]
[421709624,1778051442000,-867.07,0.00016438,2]
[421709616,1778051442000,-9999.99,0.00016116,2]
[421709606,1778051442000,-150.62706686,0.00015716,2]
[421709608,1778051442000,-150.0,0.000159,2]
[421709688,1778051443000,-500.0,0.00017025,2]
[421709703,1778051443000,-1500.0,0.00017534,2]
[421709691,1778051443000,-500.0,0.00017025,2]
[421709692,1778051443000,-313.910179,0.00017025,2]
[421709697,1778051443000,-286.0,0.00017096,2]
[421709694,1778051443000,-200.0,0.00017079,2]
[421709695,1778051443000,-2781.82699784,0.00017079,2]
[421709702,1778051443000,-867.07,0.00017526,2]
[421709701,1778051443000,-970.29,0.00017526,2]
[421709699,1778051443000,-150.0,0.00017096,2]
[421709706,1778051443000,-1500.0,0.00017534,2]
[421709693,1778051443000,-162.93,0.00017076,2]
[421709725,1778051443000,-483.28,0.00017564,2]
[421709711,1778051443000,-431.73147682,0.00017534,2]
[421709700,1778051443000,-245.0,0.00017096,2]
[421709720,1778051443000,-501.50869273,0.00017534,2]
[421709709,1778051443000,-1096.48180787,0.00017534,2]
[421709713,1778051443000,-1500.0,0.00017534,2]
[421709723,1778051443000,-167.88328684,0.00017534,2]
[421709715,1778051443000,-1500.0,0.00017534,2]
[421709719,1778051443000,-1500.0,0.00017534,2]
[421709730,1778051443000,-1000.0,0.00017573,2]
[421709727,1778051443000,-1000.0,0.00017573,2]
[421709717,1778051443000,-1500.0,0.00017534,2]
[421709729,1778051443000,-1000.0,0.00017573,2]
[421709690,1778051443000,-500.0,0.00017025,2]
[421709704,1778051443000,-1536.25927147,0.00017534,2]
[421709689,1778051443000,-500.0,0.00017025,2]
[421709664,1778051443000,-1000.0,0.00016986,2]
[421709687,1778051443000,-500.0,0.00017025,2]
[421709655,1778051443000,-671.63544967,0.00016986,2]
[421709657,1778051443000,-1000.0,0.00016986,2]
[421709656,1778051443000,-1000.0,0.00016986,2]
[421709654,1778051443000,-846.48838544,0.00016903,2]
[421709658,1778051443000,-1000.0,0.00016986,2]
[421709660,1778051443000,-1000.0,0.00016986,2]
[421709661,1778051443000,-1000.0,0.00016986,2]
[421709665,1778051443000,-1000.0,0.00016986,2]
[421709663,1778051443000,-1000.0,0.00016986,2]
[421709662,1778051443000,-1000.0,0.00016986,2]
[421709666,1778051443000,-572.29524067,0.00016986,2]
[421709670,1778051443000,-500.0,0.00017025,2]
[421709659,1778051443000,-1000.0,0.00016986,2]
[421709669,1778051443000,-2000.0,0.00017016,2]
[421709671,1778051443000,-409.67569187,0.00017025,2]
[421709668,1778051443000,-1000.0,0.00016986,2]
[421709667,1778051443000,-1000.0,0.00016986,2]
[421709673,1778051443000,-500.0,0.00017025,2]
[421709674,1778051443000,-163.68234244,0.00017025,2]
[421709676,1778051443000,-500.0,0.00017025,2]
[421709684,1778051443000,-500.0,0.00017025,2]
[421709686,1778051443000,-500.0,0.00017025,2]
[421709682,1778051443000,-500.0,0.00017025,2]
[421709680,1778051443000,-366.59660479,0.00017025,2]
[421709678,1778051443000,-517.65628542,0.00017025,2]
[421709681,1778051443000,-500.0,0.00017025,2]
[421709685,1778051443000,-500.0,0.00017025,2]
[421709679,1778051443000,-492.59344334,0.00017025,2]
[421709732,1778051443000,-1000.0,0.00017573,2]
[421709749,1778051443000,-2017.16375829,0.00018082,2]
[421709733,1778051443000,-1000.0,0.00017573,2]
[421709768,1778051443000,-2000.0,0.00018563,2]
[421709769,1778051443000,-243.88064855,0.000186,2]
[421709764,1778051443000,-243.88064855,0.000184,2]
[421709771,1778051443000,-185.12673,0.0001862,7]
[421709774,1778051443000,-2500.0,0.0001863,2]
[421709773,1778051443000,-2500.0,0.0001863,2]
[421709776,1778051443000,-2004.32156241,0.00018669,2]
[421709786,1778051443000,-150.0,0.00019178,2]
[421709777,1778051443000,-2000.0,0.00018669,2]
[421709785,1778051443000,-150.0,0.00019178,2]
[421709778,1778051443000,-2000.0,0.00018669,2]
[421709787,1778051443000,-150.0,0.00019178,2]
[421709781,1778051443000,-970.3,0.00018896,2]
[421709784,1778051443000,-47034.39162357,0.00019,2]
[421709788,1778051443000,-193.94104199,0.00019178,2]
[421709779,1778051443000,-2000.0,0.00018669,2]
[421709780,1778051443000,-243.88064855,0.000188,2]
[421709782,1778051443000,-867.07,0.00018896,2]
[421709790,1778051443000,-500.0,0.00019178,2]
[421709789,1778051443000,-500.0,0.00019178,2]
[421709796,1778051443000,-500.0,0.00019178,2]
[421709791,1778051443000,-500.0,0.00019178,2]
[421709792,1778051443000,-500.0,0.00019178,2]
[421709795,1778051443000,-500.0,0.00019178,2]
[421709793,1778051443000,-500.0,0.00019178,2]
[421709794,1778051443000,-500.0,0.00019178,2]
[421709721,1778051443000,-1500.0,0.00017534,2]
[421709770,1778051443000,-274.922685,0.0001862,2]
[421709766,1778051443000,-2732.3,0.0001841,2]
[421709783,1778051443000,-169.59,0.00018969,2]
[421709765,1778051443000,-12626.07118196,0.000184,2]
[421709772,1778051443000,-309.24927612,0.0001863,2]
[421709734,1778051443000,-200.0,0.00017627,2]
[421709738,1778051443000,-157.0,0.00017652,3]
[421709736,1778051443000,-2884.75459676,0.00017627,2]
[421709740,1778051443000,-1252.0,0.00017722,2]
[421709745,1778051443000,-426.6,0.0001799,2]
[421709743,1778051443000,-233.0,0.00017945,2]
[421709742,1778051443000,-44976.31259438,0.00017801,2]
[421709746,1778051443000,-350.0,0.00018,2]
[421709744,1778051443000,-182.0,0.00017945,2]
[421709747,1778051443000,-2000.0,0.00018082,2]
[421709751,1778051443000,-2000.0,0.00018082,2]
[421709752,1778051443000,-2000.0,0.00018082,2]
[421709761,1778051443000,-2991.49051684,0.00018175,2]
[421709748,1778051443000,-2000.0,0.00018082,2]
[421709750,1778051443000,-1461.74205325,0.00018082,2]
[421709767,1778051443000,-4609.0,0.00018514,2]
[421709763,1778051443000,-500.0,0.00018355,2]
[421709758,1778051443000,-1500.0,0.00018121,2]
[421709757,1778051443000,-1500.0,0.00018121,2]
[421709755,1778051443000,-160.0,0.00018117,2]
[421709754,1778051443000,-162.55277151,0.0001811,2]
[421709775,1778051443000,-2000.0,0.00018669,2]
[421709756,1778051443000,-1500.0,0.00018121,2]
[421709762,1778051443000,-243.88064855,0.000182,2]
[421709760,1778051443000,-1500.0,0.00018121,2]
[421709759,1778051443000,-1500.0,0.00018121,2]
[421709753,1778051443000,-243.88064855,0.000181,2]
[421709844,1778051444000,-500.0,0.00019822,2]
[421709838,1778051444000,-500.0,0.00019756,2]
[421709839,1778051444000,-512.34278439,0.00019756,2]
[421709834,1778051444000,-500.0,0.00019756,2]
[421709835,1778051444000,-500.0,0.00019756,2]
[421709831,1778051444000,-500.0,0.00019756,2]
[421709833,1778051444000,-500.0,0.00019756,2]
[421709829,1778051444000,-500.0,0.00019756,2]
[421709836,1778051444000,-500.0,0.00019756,2]
[421709837,1778051444000,-500.0,0.00019756,2]
[421709842,1778051444000,-150.0,0.00019813,2]
[421709841,1778051444000,-3000.0,0.00019765,2]
[421709832,1778051444000,-500.0,0.00019756,2]
[421709855,1778051444000,-199.06317263,0.0002,2]
[421709859,1778051444000,-1100.0,0.0002,2]
[421709843,1778051444000,-500.0,0.00019822,2]
[421709846,1778051444000,-500.0,0.00019822,2]
[421709854,1778051444000,-199.06317263,0.0002,2]
[421709845,1778051444000,-500.0,0.00019822,2]
[421709847,1778051444000,-500.0,0.00019822,2]
[421709850,1778051444000,-2000.0,0.0002,2]
[421709848,1778051444000,-150.0,0.00019822,2]
[421709851,1778051444000,-400.0,0.0002,2]
[421709853,1778051444000,-447.0,0.0002,2]
[421709852,1778051444000,-8829.0,0.0002,2]
[421709856,1778051444000,-152.0,0.0002,2]
[421709857,1778051444000,-263.0,0.0002,2]
[421709862,1778051444000,-942.0,0.0002,2]
[421709830,1778051444000,-500.0,0.00019756,2]
[421709849,1778051444000,-500.0,0.00019822,2]
[421709825,1778051444000,-150.0,0.00019756,2]
[421709801,1778051444000,-500.0,0.00019178,2]
[421709826,1778051444000,-500.0,0.00019756,2]
[421709800,1778051444000,-500.0,0.00019178,2]
[421709858,1778051444000,-342.0,0.0002,2]
[421709797,1778051444000,-500.0,0.00019178,2]
[421709799,1778051444000,-500.0,0.00019178,2]
[421709798,1778051444000,-500.0,0.00019178,2]
[421709803,1778051444000,-500.0,0.00019178,2]